bitfinex/quotes_SOLUSD_20250310
["timestamp","ask_amount","ask_price","bid_price","bid_amount"]
[1741596935410,24.3792512,126.61,126.6,0.03]
[1741596936097,32.2774512,126.61,126.6,0.03]
[1741596937005,51.06926163,126.61,126.6,0.03]
[1741596937311,75.30635126,126.61,126.6,0.03]
[1741596937603,77.30635126,126.61,126.6,0.03]
[1741596937910,20.28432314,126.57,126.55,0.03]
[1741596938208,43.02890006,126.56,126.55,0.03]
[1741596939113,50.93020006,126.56,126.55,0.03]
[1741596940183,51.07236163,126.56,126.55,0.03]
[1741596941002,38.933972,126.53,126.52,0.03]
[1741596941194,63.17106163,126.53,126.52,0.03]
[1741596941390,44.3792512,126.53,126.52,0.03]
[1741596941588,0.14216157,126.53,126.52,0.03]
[1741596941788,44.3792512,126.53,126.52,0.03]
[1741596942111,0.14216157,126.53,126.52,0.03]
[1741596943209,106.63708963,126.54,126.52,0.03]
[1741596943508,82.4,126.54,126.52,0.03]
[1741596944006,106.63708963,126.54,126.52,0.03]
[1741596944510,24.3792512,126.53,126.52,0.03]
[1741596945599,32.2824512,126.53,126.52,0.03]
[1741596946112,187.17426163,126.53,126.52,0.03]
[1741596947006,51.07426163,126.53,126.52,0.03]
[1741596948118,57.50114384,126.53,126.52,0.03]
[1741596948927,51.07426163,126.53,126.52,0.03]
[1741596950244,239.39426163,126.53,126.52,0.03]
[1741596951006,239.39426163,126.53,126.46,24.23708963]
[1741596951007,82.37,126.51,126.46,24.23708963]
[1741596951212,82.37,126.5,126.47,7.907]
[1741596951411,82.37,126.5,126.46,7.9076]
[1741596951622,82.37,126.5,126.47,24.23708963]
[1741596952341,82.37,126.5,126.46,7.9076]
[1741596952532,82.37,126.5,126.47,24.23708963]
[1741596952732,24.3792512,126.51,126.46,32.14468963]
[1741596953315,24.3792512,126.51,126.46,7.9076]
[1741596953316,106.60708963,126.5,126.46,7.9076]
[1741596953517,106.60708963,126.5,126.45,33.72418963]
[1741596953931,82.37,126.5,126.47,24.23708963]
[1741596954318,82.37,126.5,126.46,24.23708963]
[1741596955140,82.37,126.5,126.45,53.49478963]
[1741596955547,82.37,126.5,126.46,24.23708963]
[1741596955845,82.37,126.5,126.47,24.23708963]
[1741596956212,0.14216157,126.49,126.45,29.2577]
[1741596956438,82.51216157,126.49,126.45,9.4871]
[1741596956616,82.51216157,126.49,126.45,33.72418963]
[1741596956941,82.37,126.49,126.47,24.26708963]
[1741596957313,82.37,126.49,126.47,0.03]
[1741596957514,82.37,126.49,126.47,7.937]
[1741596958523,82.37,126.49,126.47,0.03]
[1741596958729,82.37,126.49,126.48,24.23708963]
[1741596959045,82.37,126.49,126.47,0.03]
[1741596960943,82.37,126.49,126.47,24.26708963]
[1741596961748,82.37,126.49,126.48,7.9063]
[1741596962059,82.37,126.49,126.48,32.14338963]
[1741596962730,188.36,126.54,126.48,76.14637926]
[1741596963048,270.73,126.54,126.51,24.23708963]
[1741596963249,270.73,126.54,126.49,24.23708963]
[1741596963431,294.96708963,126.54,126.49,24.23708963]
[1741596963632,270.73,126.54,126.51,24.23708963]
[1741596963926,18.85481043,126.55,126.48,51.90928963]
[1741596963927,0.063,126.55,126.53,24.23708963]
[1741596964448,0.063,126.55,126.52,32.14088963]
[1741596964638,0.20516157,126.55,126.52,32.14088963]
[1741596964826,18.85481043,126.55,126.51,7.9042]
[1741596965035,43.09190006,126.55,126.51,7.9042]
[1741596965230,0.063,126.55,126.54,24.23708963]
[1741596965445,0.063,126.55,126.53,24.23708963]
[1741596966028,0.063,126.55,126.54,7.9026]
[1741596967143,0.063,126.55,126.54,32.13968963]
[1741596968051,0.063,126.55,126.53,24.23708963]
[1741596969153,0.063,126.55,126.54,24.23708963]
[1741596969944,0.063,126.55,126.54,32.13968963]
[1741596970262,0.063,126.55,126.53,7.9029]
[1741596970553,0.063,126.55,126.52,32.14068963]
[1741596971236,0.063,126.55,126.53,24.23708963]
[1741596971949,0.063,126.55,126.54,32.13968963]
[1741596974638,0.063,126.55,126.54,57.96637926]
[1741596974854,0.14216157,126.54,126.47,83.1196]
[1741596975056,44.23708963,126.53,126.48,32.14338963]
[1741596975237,44.23708963,126.53,126.48,24.23708963]
[1741596975438,24.23708963,126.52,126.47,25.85668963]
[1741596975861,44.23708963,126.53,126.48,24.23708963]
[1741596976263,20.0,126.53,126.48,24.23708963]
[1741596976564,52.14038963,126.53,126.47,1.6196]
[1741596976775,52.14038963,126.53,126.48,24.23708963]
[1741596977074,44.23708963,126.53,126.48,24.23708963]
[1741596977276,43.02890006,126.52,126.47,25.85668963]
[1741596977460,24.23708963,126.51,126.47,1.6196]
[1741596978462,133.30290006,126.52,126.47,1.6196]
[1741596978774,133.30290006,126.52,126.47,25.85668963]
[1741596979269,82.51216157,126.52,126.48,24.23708963]
[1741596979448,82.51216157,126.52,126.47,1.6196]
[1741596979449,106.7492512,126.52,126.47,1.6196]
[1741596979774,114.6532512,126.52,126.47,25.85668963]
[1741596979977,90.41616157,126.52,126.48,24.23708963]
[1741596980276,114.6532512,126.52,126.47,25.85668963]
[1741596981261,114.7162512,126.52,126.47,25.85668963]
[1741596981570,90.337,126.52,126.47,25.85668963]
[1741596981752,82.433,126.52,126.48,24.23708963]
[1741596981955,0.063,126.52,126.5,24.23708963]
[1741596982170,0.063,126.52,126.49,24.23708963]
[1741596982574,0.063,126.52,126.49,32.14268963]
[1741596983580,0.063,126.52,126.47,1.6196]
[1741596983754,24.30008963,126.52,126.47,1.6196]
[1741596983958,24.23708963,126.51,126.47,1.6196]
[1741596984187,106.60708963,126.51,126.47,0.03]
[1741596984499,7.9057,126.49,126.47,0.03]
[1741596984675,32.14278963,126.49,126.47,0.03]
[1741596985079,24.23708963,126.48,126.47,0.03]
[1741596985392,24.3792512,126.48,126.47,0.03]
[1741596985569,43.17106163,126.48,126.47,0.03]
[1741596986198,20.0,126.44,126.42,0.03]
[1741596986368,126.7792512,126.43,126.42,0.03]
[1741596986571,153.33840006,126.43,126.42,0.03]
[1741596987907,71.08056163,126.43,126.42,0.03]
[1741596988277,70.93840006,126.43,126.42,0.03]
[1741596988477,71.08056163,126.43,126.42,0.03]
[1741596988883,63.17106163,126.43,126.42,0.03]
[1741596989189,71.08056163,126.43,126.42,0.03]
[1741596989384,63.17106163,126.43,126.42,0.03]
[1741596989588,71.08056163,126.43,126.42,0.03]
[1741596989989,63.17106163,126.43,126.42,0.03]
[1741596991505,71.08056163,126.43,126.42,0.03]
[1741596991802,95.31765126,126.43,126.42,0.03]
[1741596992005,71.08056163,126.43,126.42,0.03]
[1741596992905,63.17106163,126.43,126.42,0.03]
[1741596993285,63.02890006,126.43,126.42,0.03]
[1741596993605,44.3792512,126.43,126.42,0.03]
[1741596993797,24.3792512,126.43,126.42,0.03]
[1741596993997,44.23708963,126.43,126.42,0.03]
[1741596994392,24.23708963,126.43,126.42,0.03]
[1741596994593,44.23708963,126.43,126.42,0.03]
[1741596994792,24.23708963,126.45,126.42,0.03]
[1741596995007,24.3792512,126.47,126.42,32.17718963]
[1741596995709,24.3792512,126.47,126.42,51.95248963]
[1741596996008,24.23708963,126.47,126.42,51.95248963]
[1741596997302,24.23708963,126.47,126.42,32.17718963]
[1741596997502,24.23708963,126.46,126.42,7.9401]
[1741596997701,20.0,126.46,126.42,32.17718963]
[1741596998178,20.0,126.46,126.42,7.9401]
[1741596998382,20.0,126.46,126.42,32.17718963]
[1741596998807,24.23708963,126.46,126.42,32.17718963]
[1741596999405,106.63708963,126.46,126.42,32.17718963]
[1741597000312,82.4,126.46,126.42,32.17718963]
[1741597000484,82.4,126.46,126.42,7.9401]
[1741597001003,82.4,126.46,126.42,32.17718963]
[1741597002715,82.4,126.46,126.43,24.23708963]
[1741597002884,82.4,126.46,126.42,32.17718963]
[1741597003600,82.4,126.46,126.42,7.9401]
[1741597004310,24.23708963,126.44,126.42,0.03]
[1741597004508,106.63708963,126.43,126.42,0.03]
[1741597004814,82.4,126.43,126.42,0.03]
[1741597005616,106.63708963,126.43,126.42,0.03]
[1741597006114,114.54658963,126.43,126.42,0.03]
[1741597006300,32.2887512,126.43,126.42,0.03]
[1741597007427,51.08056163,126.43,126.42,0.03]
[1741597007793,20.28432314,126.39,126.36,0.28197496]
[1741597008127,24.3792512,126.37,126.36,0.28197496]
[1741597008422,24.23708963,126.37,126.36,0.28197496]
[1741597008723,18.64964886,126.39,126.36,0.28197496]
[1741597008724,24.3792512,126.38,126.36,0.28197496]
[1741597009222,43.02890006,126.37,126.36,0.28197496]
[1741597009720,24.23708963,126.37,126.36,0.28197496]
[1741597009915,24.3792512,126.37,126.36,0.28197496]
[1741597010493,32.2924512,126.37,126.36,0.28197496]
[1741597011613,50.94210006,126.37,126.36,0.28197496]
[1741597011919,0.28432314,126.35,126.34,2.18022396]
[1741597012121,18.79181043,126.33,126.25,25.73888963]
[1741597012330,24.23708963,126.32,126.27,24.23708963]
[1741597012725,24.23708963,126.32,126.26,7.92]
[1741597012898,24.23708963,126.32,126.26,32.15708963]
[1741597013106,160.4792512,126.33,126.28,24.23708963]
[1741597013319,0.14216157,126.32,126.28,24.23708963]
[1741597013636,160.4792512,126.33,126.26,27.7204]
[1741597013637,160.33708963,126.33,126.26,27.7204]
[1741597013928,136.1,126.33,126.3,24.23708963]
[1741597014246,188.5,126.37,126.32,39.2054928]
[1741597014436,188.5,126.37,126.27,0.14216157]
[1741597014437,188.5,126.37,126.31,1.6008]
[1741597014621,188.5,126.37,126.34,39.2054928]
[1741597014825,188.5,126.37,126.33,39.2054928]
[1741597015345,188.5,126.37,126.34,39.2054928]
[1741597015847,188.5,126.37,126.35,7.9145]
[1741597016050,188.5,126.37,126.35,47.1199928]
[1741597016834,188.5,126.37,126.34,1.5226648]
[1741597016835,18.64964886,126.35,126.34,1.5226648]
[1741597017042,0.14216157,126.34,126.31,0.03]
[1741597017352,121.6054928,126.33,126.31,0.03]
[1741597018427,82.4,126.36,126.32,39.2054928]
[1741597018630,82.4,126.36,126.33,39.2054928]
[1741597018838,82.4,126.36,126.31,0.03]
[1741597018839,82.4,126.36,126.31,39.2354928]
[1741597019027,121.6054928,126.36,126.31,39.2354928]
[1741597019232,82.4,126.36,126.31,39.2354928]
[1741597019444,121.6054928,126.36,126.31,39.2354928]
[1741597020045,82.4,126.36,126.32,47.1218928]
[1741597020251,188.5,126.37,126.34,39.2054928]
[1741597020547,188.5,126.37,126.32,7.9164]
[1741597020548,188.5,126.37,126.35,39.2054928]
[1741597020939,188.5,126.37,126.34,39.2054928]
[1741597021117,188.5,126.37,126.33,39.2054928]
[1741597021324,188.5,126.37,126.34,39.2054928]
[1741597021547,188.5,126.37,126.35,39.2054928]
[1741597022032,82.4,126.4,126.37,7.9132]
[1741597022236,82.4,126.4,126.38,39.2054928]
[1741597022534,82.463,126.43,126.39,39.2054928]
[1741597022939,82.463,126.43,126.38,39.2054928]
[1741597024055,82.463,126.43,126.37,27.6963]
[1741597024056,82.463,126.43,126.4,39.2054928]
[1741597024346,0.063,126.43,126.41,39.2054928]
[1741597024549,0.063,126.43,126.42,39.2054928]
[1741597024748,0.063,126.43,126.41,39.2054928]
[1741597024932,0.063,126.43,126.4,1.5659]
[1741597027348,0.063,126.43,126.4,9.4771]
[1741597027535,0.063,126.43,126.4,48.6825928]
[1741597028354,0.063,126.43,126.38,7.9124]
[1741597028541,39.2684928,126.43,126.38,7.9124]
[1741597028742,0.063,126.43,126.38,47.1178928]
[1741597029635,0.063,126.43,126.4,39.2054928]
[1741597030423,0.063,126.43,126.39,39.2054928]
[1741597031555,0.063,126.43,126.4,39.2054928]
[1741597031756,0.063,126.43,126.38,19.7816]
[1741597032047,0.063,126.43,126.39,47.1174928]
[1741597032554,0.063,126.43,126.39,7.912]
[1741597032739,0.063,126.43,126.41,39.2054928]
[1741597033140,0.063,126.43,126.42,39.2054928]
[1741597033735,0.063,126.43,126.42,47.1155928]
[1741597034155,0.063,126.43,126.42,87.9687856]
[1741597034332,0.063,126.43,126.42,55.3062928]
[1741597034534,0.063,126.43,126.42,94.5117856]
[1741597034934,0.063,126.43,126.42,55.3062928]
[1741597036155,0.063,126.43,126.41,7.9106]
[1741597036338,0.063,126.43,126.4,7.9112]
[1741597036546,39.2684928,126.43,126.39,9.4947]
[1741597037968,39.2054928,126.4,126.36,7.9138]
[1741597038179,121.74765437,126.39,126.34,1.6443]
[1741597038471,82.4,126.38,126.34,48.7647928]
[1741597039172,82.4,126.38,126.34,9.5593]
[1741597039343,121.6054928,126.38,126.34,0.03]
[1741597039741,82.4,126.38,126.34,47.1504928]
[1741597040353,82.4,126.38,126.34,7.945]
[1741597040667,82.4,126.38,126.35,39.2054928]
[1741597041164,82.4,126.38,126.34,47.1504928]
[1741597041354,39.2054928,126.4,126.34,47.1504928]
[1741597041657,1.5621,126.41,126.35,39.2054928]
[1741597041857,82.4,126.42,126.38,39.2054928]
[1741597042063,82.4,126.42,126.39,39.2054928]
[1741597042440,82.4,126.42,126.37,1.503]
[1741597042640,82.4,126.42,126.38,39.2054928]
[1741597042964,39.2054928,126.39,126.34,0.03]
[1741597043151,39.2054928,126.39,126.34,39.2354928]
[1741597043663,39.2054928,126.39,126.34,0.03]
[1741597043965,121.6054928,126.4,126.35,7.9145]
[1741597044278,0.14216157,126.38,126.34,0.03]
[1741597044574,57.99730323,126.38,126.34,0.03]
[1741597044758,82.4,126.39,126.35,39.2054928]
[1741597044951,82.4,126.39,126.36,39.2054928]
[1741597045159,82.4,126.39,126.34,7.945]
[1741597045358,82.4,126.39,126.36,39.2054928]
[1741597045675,82.4,126.39,126.37,39.2054928]
[1741597045974,82.4,126.41,126.38,39.2054928]
[1741597046280,0.063,126.43,126.4,39.2054928]
[1741597046457,0.063,126.43,126.41,39.2054928]
[1741597046658,0.063,126.43,126.37,109.1959]
[1741597046855,0.063,126.43,126.41,39.2054928]
[1741597047053,0.063,126.43,126.42,39.2054928]
[1741597047563,0.063,126.43,126.42,40.7586928]
[1741597047785,0.063,126.43,126.42,48.6687928]
[1741597049671,188.48,126.45,126.42,107.79174717]
[1741597049980,0.063,126.47,126.44,39.2054928]
[1741597050200,0.063,126.47,126.46,39.2054928]
[1741597051188,0.063,126.47,126.45,39.2054928]
[1741597051678,0.063,126.47,126.44,120.7054928]
[1741597051885,0.063,126.47,126.44,39.2054928]
[1741597052072,0.063,126.47,126.45,39.2054928]
[1741597052777,0.063,126.47,126.46,39.2054928]
[1741597053370,0.063,126.47,126.45,39.2054928]
[1741597053562,0.063,126.47,126.46,47.1130928]
[1741597054161,0.063,126.47,126.46,7.9076]
[1741597054662,0.063,126.47,126.46,47.1130928]
[1741597055161,0.063,126.47,126.46,7.9076]
[1741597055562,0.063,126.47,126.46,47.1130928]
[1741597056264,0.063,126.47,126.45,24.45065824]
[1741597056959,0.063,126.47,126.44,7.9088]
[1741597057163,0.063,126.47,126.46,24.45065824]
[1741597057773,0.063,126.47,126.46,32.35825824]
[1741597060592,0.063,126.47,126.46,7.9076]
[1741597060791,0.063,126.47,126.46,32.35825824]
[1741597061782,0.0001,126.47,126.46,32.35825824]
[1741597062891,0.0001,126.47,126.46,24.45065824]
[1741597063298,0.0001,126.47,126.46,32.35825824]
[1741597066393,0.0001,126.47,126.43,393.53]
[1741597066699,0.0001,126.47,126.46,24.45065824]
[1741597067396,0.0001,126.47,126.44,7.9088]
[1741597067574,0.0001,126.47,126.43,319.9392]
[1741597067773,0.0001,126.47,126.45,24.45065824]
[1741597068183,0.0001,126.47,126.46,24.45065824]
[1741597070508,0.0001,126.47,126.46,32.35825824]
[1741597071797,0.0001,126.47,126.46,24.45065824]
[1741597072591,0.0001,126.47,126.45,7.9081]
[1741597072797,0.0001,126.47,126.46,24.45065824]
[1741597074896,0.0001,126.47,126.45,32.35875824]
[1741597076182,0.0001,126.47,126.45,24.45065824]
[1741597076379,0.0001,126.47,126.44,24.45065824]
[1741597077110,0.0001,126.47,126.45,24.45065824]
[1741597078084,0.0001,126.47,126.45,32.35835824]
[1741597078598,0.0001,126.47,126.46,0.03]
[1741597080485,0.0001,126.47,126.46,24.48065824]
[1741597081697,0.0001,126.47,126.46,0.03]
[1741597081900,0.0001,126.47,126.46,24.48065824]
[1741597082614,0.0001,126.47,126.46,32.38825824]
[1741597082996,0.0001,126.47,126.46,0.03]
[1741597083403,24.45075824,126.47,126.46,0.03]
[1741597083585,43.1004071,126.47,126.46,0.03]
[1741597083921,43.38473024,126.47,126.46,0.03]
[1741597084214,51.01563024,126.47,126.46,0.03]
[1741597084719,58.92263024,126.47,126.46,0.03]
[1741597085012,0.14216157,126.45,126.43,0.03]
[1741597085189,24.45065824,126.44,126.43,0.03]
[1741597086522,32.50131981,126.45,126.43,0.03]
[1741597086685,242.95065824,126.46,126.43,0.03]
[1741597086891,218.5,126.46,126.43,0.03]
[1741597088292,218.5,126.46,126.43,7.9395]
[1741597088604,82.4,126.46,126.43,7.9395]
[1741597089108,106.85065824,126.46,126.43,0.03]
[1741597089317,24.45065824,126.44,126.43,0.03]
[1741597092819,106.85065824,126.46,126.43,0.03]
[1741597093017,82.4,126.46,126.43,0.03]
[1741597093200,82.4,126.46,126.43,7.9395]
[1741597093912,0.0001,126.47,126.44,24.45065824]
[1741597094113,0.0001,126.47,126.45,24.45065824]
[1741597094823,0.0001,126.47,126.46,24.45065824]
[1741597095323,0.0001,126.47,126.45,24.45065824]
[1741597095925,0.0001,126.47,126.44,32.35945824]
[1741597097326,0.0001,126.47,126.44,7.9088]
[1741597097499,0.0001,126.47,126.44,32.35945824]
[1741597098019,0.0001,126.47,126.45,24.45065824]
[1741597099199,0.0001,126.47,126.43,32.38995824]
[1741597099521,0.0001,126.47,126.44,24.45065824]
[1741597100333,0.0001,126.47,126.45,24.45065824]
[1741597100513,0.0001,126.47,126.44,24.45065824]
[1741597101624,0.0001,126.47,126.44,32.35925824]
[1741597101920,0.0001,126.47,126.44,24.45065824]
[1741597103325,0.0001,126.47,126.45,24.45065824]
[1741597103527,0.0001,126.47,126.44,32.38935824]
[1741597105931,0.0001,126.47,126.45,24.45065824]
[1741597107237,0.0001,126.47,126.44,32.38935824]
[1741597107826,0.14216157,126.46,126.44,0.03]
[1741597108626,0.0001,126.47,126.44,24.48065824]
[1741597109235,0.0001,126.47,126.44,0.03]
[1741597109409,0.14226157,126.47,126.44,0.03]
[1741597109615,0.0001,126.47,126.45,24.45065824]
[1741597110017,0.0001,126.47,126.44,24.48065824]
[1741597110419,0.0001,126.47,126.44,0.03]
[1741597110627,0.0001,126.47,126.44,7.9388]
[1741597110835,0.0001,126.47,126.44,32.38945824]
[1741597111135,0.0001,126.47,126.45,24.45065824]
[1741597111809,0.0001,126.47,126.46,24.45065824]
[1741597112734,0.0001,126.47,126.46,32.35825824]
[1741597115341,0.0001,126.47,126.46,0.03]
[1741597115934,0.0001,126.47,126.46,24.48065824]
[1741597116137,0.0001,126.47,126.46,0.03]
[1741597117243,0.0001,126.47,126.46,24.48065824]
[1741597117541,0.0001,126.47,126.46,0.03]
[1741597119644,24.59291981,126.47,126.46,0.03]
[1741597120427,8.04926157,126.47,126.46,0.03]
[1741597120625,269.64956867,126.47,126.46,0.03]
[1741597120828,271.21546867,126.47,126.46,0.03]
[1741597121237,237.29191043,126.47,126.46,0.03]
[1741597121758,0.0001,126.47,126.46,0.03]
[1741597129448,24.45075824,126.47,126.46,0.03]
[1741597130043,0.0001,126.47,126.46,0.03]
[1741597130648,0.0001,126.47,126.46,7.9376]
[1741597131756,0.0001,126.47,126.46,0.03]
[1741597134758,0.0001,126.47,126.46,24.48065824]
[1741597136357,0.0001,126.47,126.46,15.67608489]
[1741597136976,0.0001,126.47,126.46,23.72584646]
[1741597137446,0.0001,126.47,126.46,23.58368489]
[1741597138034,0.0001,126.47,126.46,335.58368489]
[1741597138237,0.0001,126.47,126.46,319.9376]
[1741597138435,0.0001,126.47,126.46,0.03]
[1741597138742,0.0001,126.47,126.46,7.9376]
[1741597138940,0.0001,126.47,126.46,23.58368489]
[1741597141241,0.0001,126.47,126.46,15.67608489]
[1741597141445,0.0001,126.47,126.46,0.03]
[1741597142345,0.0001,126.47,126.46,32.38831602]
[1741597148775,0.0001,126.47,126.46,344.38831602]
[1741597149077,0.0001,126.47,126.46,32.38831602]
[1741597159364,0.0001,126.47,126.46,7.9376]
[1741597159570,0.0001,126.47,126.46,32.38831602]
[1741597160192,0.0001,126.47,126.46,32.53047759]
[1741597160872,0.0001,126.47,126.46,32.38831602]
[1741597162395,0.0001,126.47,126.46,23.58005269]
[1741597163594,0.0001,126.47,126.46,7.9376]
[1741597163809,0.0001,126.47,126.46,0.03]
[1741597164671,0.0001,126.47,126.46,15.67245269]
[1741597165273,0.0001,126.47,126.46,0.03]
[1741597165488,0.0001,126.47,126.46,15.67245269]
[1741597165682,0.0001,126.47,126.46,0.03]
[1741597166279,0.0001,126.47,126.46,7.9376]
[1741597166974,0.0001,126.47,126.46,0.03]
[1741597167574,0.0001,126.47,126.46,15.67245269]
[1741597167990,0.0001,126.47,126.46,0.03]
[1741597168682,0.0001,126.47,126.46,15.67245269]
[1741597170401,0.0001,126.47,126.46,23.58005269]
[1741597176101,0.0001,126.47,126.46,23.72221426]
[1741597178531,0.0001,126.47,126.46,335.72221426]
[1741597178911,0.0001,126.47,126.46,417.08383545]
[1741597179127,0.063,126.52,126.5,20.0]
[1741597179432,0.063,126.52,126.51,15.64245269]
[1741597180325,0.063,126.52,126.51,15.78461426]
[1741597180501,0.063,126.52,126.51,23.54695269]
[1741597181615,0.063,126.52,126.51,23.68911426]
[1741597182407,0.063,126.52,126.51,335.68911426]
[1741597182609,0.063,126.52,126.51,23.68911426]
[1741597184535,0.063,126.53,126.52,0.14216157]
[1741597184832,0.063,126.53,126.52,23.68841426]
[1741597186732,0.063,126.53,126.52,23.54625269]
[1741597188149,0.063,126.53,126.52,23.68841426]
[1741597194959,0.063,126.53,126.52,23.54625269]
[1741597195259,0.063,126.53,126.5,23.54755269]
[1741597195460,0.063,126.53,126.51,15.64245269]
[1741597195632,0.063,126.53,126.52,15.64245269]
[1741597197345,0.063,126.53,126.51,23.54665269]
[1741597197970,0.063,126.53,126.52,0.03]
[1741597198951,0.063,126.53,126.52,15.67245269]
[1741597199152,0.063,126.53,126.52,0.03]
[1741597199957,34.49726312,126.53,126.52,0.03]
[1741597201258,2.04498492,126.53,126.52,15.67245269]
[1741597201749,2.04498492,126.53,126.52,0.03]
[1741597202138,2.04498492,126.53,126.52,15.67245269]
[1741597202469,0.063,126.53,126.52,15.67245269]
[1741597203260,0.063,126.53,126.52,0.03]
[1741597203465,15.84761426,126.53,126.52,0.03]
[1741597203848,0.063,126.53,126.52,0.03]
[1741597204961,0.063,126.53,126.52,23.57625269]
[1741597205167,0.063,126.53,126.52,0.03]
[1741597207267,178.42802469,126.53,126.52,0.03]
[1741597207462,159.63621426,126.53,126.52,0.03]
[1741597207671,143.99376157,126.53,126.52,0.03]
[1741597207850,136.163,126.53,126.52,0.03]
[1741597208050,0.063,126.53,126.52,0.03]
[1741597208364,0.063,126.53,126.52,15.67245269]
[1741597209067,0.063,126.53,126.52,23.57625269]
[1741597209879,0.063,126.53,126.52,0.03]
[1741597210986,0.063,126.53,126.52,7.9338]
[1741597211170,0.063,126.53,126.52,32.37096731]
[1741597213380,0.063,126.53,126.52,0.03]
[1741597217787,0.063,126.53,126.52,24.46716731]
[1741597219385,0.063,126.53,126.52,32.37096731]
[1741597220381,0.063,126.53,126.52,34.11442888]
[1741597224285,0.063,126.53,126.52,33.97226731]
[1741597224589,0.063,126.53,126.52,34.11442888]
[1741597228491,0.063,126.53,126.52,33.97226731]
[1741597232306,0.063,126.53,126.52,25.16143637]
[1741597233304,0.063,126.53,126.52,25.30359794]
[1741597234610,0.063,126.56,126.52,165.87985385]
[1741597234894,0.063,126.56,126.55,23.52833637]
[1741597237602,0.063,126.56,126.55,335.52833637]
[1741597238103,0.063,126.6,126.55,355.42549794]
[1741597238394,0.063,126.6,126.59,15.62633637]
[1741597238598,0.063,126.6,126.58,15.62633637]
[1741597239776,0.063,126.6,126.59,7.8995]
[1741597240687,2.04354475,126.6,126.59,7.8995]
[1741597240896,2.04354475,126.6,126.59,23.52583637]
[1741597241197,2.04354475,126.6,126.59,7.8995]
[1741597241503,2.04354475,126.6,126.59,319.8995]
[1741597242896,2.04354475,126.6,126.57,15.62633637]
[1741597243095,2.04354475,126.6,126.57,23.52663637]
[1741597243981,2.04354475,126.6,126.58,15.62633637]
[1741597244313,2.04354475,126.6,126.57,23.52663637]
[1741597244600,0.063,126.6,126.57,23.52663637]
[1741597245511,0.063,126.6,126.56,23.52743637]
[1741597245801,105.98833637,126.6,126.55,15.62633637]
[1741597245990,15.76849794,126.59,126.54,15.62633637]
[1741597246301,15.76849794,126.59,126.54,23.52843637]
[1741597246898,1.98067751,126.58,126.54,23.52843637]
[1741597247411,84.38067751,126.58,126.54,23.52843637]
[1741597247614,1.98067751,126.58,126.57,15.62633637]
[1741597247784,7.751e-05,126.58,126.57,35.76849794]
[1741597247978,7.751e-05,126.58,126.57,43.66919794]
[1741597248194,0.063,126.6,126.57,63.42109794]
[1741597248393,0.063,126.6,126.59,15.62633637]
[1741597250086,0.063,126.6,126.59,23.52583637]
[1741597251809,0.0001,126.6,126.59,23.66799794]
[1741597252001,0.0001,126.6,126.59,86.03118185]
[1741597252197,0.063,126.64,126.62,20.0]
[1741597252523,0.063,126.64,126.63,15.62633637]
[1741597253398,0.0001,126.64,126.63,15.76849794]
[1741597254197,0.0001,126.64,126.63,23.66549794]
[1741597254796,0.0001,126.64,126.63,335.66549794]
[1741597256322,0.0001,126.64,126.63,344.40511939]
[1741597257495,0.063,126.66,126.65,20.0]
[1741597257693,0.063,126.68,126.66,0.28432314]
[1741597257912,0.063,126.68,126.67,24.36595782]
[1741597258116,0.063,126.73,126.69,0.14216157]
[1741597258299,0.063,126.73,126.71,24.36595782]
[1741597260328,0.063,126.73,126.7,24.36595782]
[1741597260496,0.063,126.73,126.71,24.36595782]
[1741597261823,0.063,126.73,126.71,32.25795782]
[1741597262313,0.063,126.73,126.71,24.36595782]